fUSD/lending_fUSD_20240416
["ID","MTS","AMOUNT","RATE_DAILY","PERIOD"]
[322779399,1713279041447,-500.0,0.00016999,2]
[322779400,1713279041456,-500.0,0.00016999,2]
[322779401,1713279041465,-500.0,0.00016999,2]
[322779402,1713279041474,-500.0,0.00016999,2]
[322779403,1713279041484,-500.0,0.00016999,2]
[322779404,1713279041493,-500.0,0.00016999,2]
[322779405,1713279041502,-500.0,0.00016999,2]
[322779406,1713279041512,-500.0,0.00016999,2]
[322779407,1713279041521,-500.0,0.00016999,2]
[322779408,1713279041530,-500.0,0.00016999,2]
[322779409,1713279041539,-500.0,0.00016999,2]
[322779410,1713279041549,-500.0,0.00016999,2]
[322779411,1713279041558,-500.0,0.00016999,2]
[322779412,1713279041568,-500.0,0.00016999,2]
[322779413,1713279041578,-500.0,0.00016999,2]
[322779414,1713279041587,-150.0,0.00016999,2]
[322779415,1713279041597,-150.0,0.00016999,2]
[322779416,1713279041606,-150.0,0.00016999,2]
[322779417,1713279041615,-150.0,0.00016999,2]
[322779418,1713279041626,-150.0,0.00016999,2]
[322779419,1713279041635,-150.0,0.00016999,2]
[322779420,1713279041644,-150.0,0.00016999,2]
[322779421,1713279041653,-500.0,0.00016999,2]
[322779422,1713279041663,-500.0,0.00016999,2]
[322779423,1713279041672,-500.0,0.00016999,2]
[322779424,1713279041681,-500.0,0.00016999,2]
[322779425,1713279041690,-500.0,0.00016999,2]
[322779426,1713279041700,-500.0,0.00016999,2]
[322779427,1713279041709,-500.0,0.00016999,2]
[322779428,1713279041719,-500.0,0.00016999,2]
[322779429,1713279041728,-500.0,0.00016999,2]
[322779430,1713279041738,-500.0,0.00016999,2]
[322779431,1713279041748,-500.0,0.00016999,2]
[322779432,1713279041757,-500.0,0.00016999,2]
[322779433,1713279041766,-500.0,0.00016999,2]
[322779434,1713279041775,-500.0,0.00016999,2]
[322779435,1713279041785,-500.0,0.00016999,2]
[322779436,1713279041794,-500.0,0.00016999,2]
[322779437,1713279041803,-257.767,0.00016999,2]
[322779438,1713279041812,-500.0,0.00016999,2]
[322779439,1713279041821,-500.0,0.00016999,2]
[322779440,1713279041830,-500.0,0.00016999,2]
[322779441,1713279041839,-500.0,0.00016999,2]
[322779442,1713279041848,-500.0,0.00016999,2]
[322779443,1713279041857,-500.0,0.00016999,2]
[322779444,1713279041869,-500.0,0.00016999,2]
[322779445,1713279041879,-500.0,0.00016999,2]
[322779446,1713279041888,-500.0,0.00016999,2]
[322779447,1713279041898,-500.0,0.00016999,2]
[322779448,1713279041907,-500.0,0.00016999,2]
[322779449,1713279041916,-500.0,0.00016999,2]
[322779450,1713279041925,-500.0,0.00016999,2]
[322779451,1713279041935,-500.0,0.00016999,2]
[322779452,1713279041944,-500.0,0.00016999,2]
[322779453,1713279041953,-500.0,0.00016999,2]
[322779454,1713279041961,-500.0,0.00016999,2]
[322779455,1713279041971,-500.0,0.00016999,2]
[322779456,1713279041980,-500.0,0.00016999,2]
[322779457,1713279041989,-500.0,0.00016999,2]
[322779458,1713279041998,-500.0,0.00016999,2]
[322779459,1713279042007,-500.0,0.00016999,2]
[322779460,1713279042016,-563.67,0.00016999,2]
[322779461,1713279042025,-563.67,0.00016999,2]
[322779462,1713279042035,-563.67,0.00016999,2]
[322779463,1713279042044,-563.67,0.00016999,2]
[322779464,1713279042053,-563.67,0.00016999,2]
[322779465,1713279042062,-563.67,0.00016999,2]
[322779466,1713279042070,-563.67,0.00016999,2]
[322779467,1713279042079,-500.0,0.00016999,2]
[322779468,1713279042089,-529.77070814,0.00016999,2]
[322779469,1713279042097,-1016.1,0.00016999,2]
[322779470,1713279042106,-1016.1,0.00016999,2]
[322779471,1713279042115,-1016.1,0.00016999,2]
[322779472,1713279042129,-1016.1,0.00016999,2]
[322779473,1713279042137,-1016.1,0.00016999,2]
[322779474,1713279042148,-1016.1,0.00016999,2]
[322779475,1713279042157,-1016.1,0.00016999,2]
[322779476,1713279042171,-239.25037657,0.00016999,2]
[322779477,1713279042183,-703.0,0.00017,2]
[322779478,1713279042193,-1830367.88012438,0.00017,3]
[322779479,1713279042203,-361.76542077,0.00017,2]
[322779480,1713279042212,-3767.0,0.00017,2]
[322779481,1713279042221,-303.009043,0.00017009,2]
[322779482,1713279042231,-1000.0,0.00017009,2]
[322779483,1713279042240,-200.0,0.00017009,2]
[322779484,1713279042250,-228.53,0.00017038,2]
[322779485,1713279042260,-800.0,0.00017049,2]
[322779486,1713279042269,-228.53,0.00017072,2]
[322779487,1713279042278,-500.0,0.00017081,2]
[322779488,1713279042287,-150.0,0.00017081,2]
[322779489,1713279042297,-500.0,0.00017081,2]
[322779490,1713279042306,-500.0,0.00017081,2]
[322779491,1713279042315,-500.0,0.00017081,2]
[322779492,1713279042324,-563.67,0.00017081,2]
[322779493,1713279042334,-1016.1,0.00017081,2]
[322779494,1713279042343,-52880.2313392,0.00017082,2]
[322779495,1713279042352,-5910.4664406,0.00017082,2]
[322779496,1713279042361,-2949.5038637,0.00017082,2]
[322779497,1713279042373,-1000.0,0.00017155,2]
[322779498,1713279042382,-1488.9831729,0.00017173,2]
[322779499,1713279042391,-150.0,0.000172,2]
[322779500,1713279042401,-187.52025476,0.00017269,2]
[322779501,1713279042409,-2564.90721598,0.0001728,2]
[322779502,1713279042418,-228.53,0.00017285,2]
[322779503,1713279042428,-228.53,0.0001729,2]
[322779504,1713279042437,-228.53,0.0001729,2]
[322779505,1713279042446,-1297.79891384,0.00017292,2]
[322779506,1713279042455,-200.0,0.00017292,2]
[322779507,1713279042464,-8890.75001694,0.00017295,2]
[322779508,1713279042473,-156.51534983,0.00017295,2]
[322779509,1713279042482,-206.42056289,0.00017295,2]
[322779510,1713279042491,-161.1020227,0.00017295,2]
[322779511,1713279042501,-155.72971648,0.00017295,2]
[322779512,1713279042510,-387.91645225,0.00017295,2]
[322779513,1713279042519,-440.74430194,0.00017295,2]
[322779514,1713279042528,-3661.966,0.00017296,2]
[322779515,1713279042537,-155.0,0.00017297,2]
[322779516,1713279042546,-155.0,0.00017298,2]
[322779517,1713279042556,-210.24561399,0.00017298,2]
[322779518,1713279042565,-5101.94990447,0.00017298,2]
[322779519,1713279042574,-1101.88619472,0.00017299,2]
[322779520,1713279042583,-68165.93584208,0.000173,3]
[322779521,1713279042593,-2273.21546381,0.00017337,2]
[322779522,1713279042602,-2273.21546381,0.0001734,2]
[322779523,1713279042611,-2273.21546381,0.00017342,2]
[322779524,1713279042623,-2273.21546381,0.00017345,2]
[322779525,1713279042633,-192.5585386,0.00017346,2]
[322779526,1713279042643,-2273.21546381,0.00017359,2]
[322779527,1713279042653,-228.53,0.00017359,2]
[322779528,1713279042663,-228.53,0.00017359,2]
[322779529,1713279042673,-228.53,0.00017359,2]
[322779530,1713279042683,-228.53,0.00017359,2]
[322779531,1713279042693,-228.53,0.00017359,2]
[322779532,1713279042702,-228.53,0.00017359,2]
[322779533,1713279042711,-228.53,0.00017362,2]
[322779534,1713279042720,-1430.04,0.00017368,2]
[322779535,1713279042730,-500.0,0.00017368,2]
[322779536,1713279042739,-432.45191741,0.00017368,2]
[322779537,1713279042748,-500.0,0.00017368,2]
[322779538,1713279042757,-150.0,0.00017368,2]
[322779539,1713279042766,-500.0,0.00017368,2]
[322779540,1713279042775,-500.0,0.00017368,2]
[322779541,1713279042784,-500.0,0.00017368,2]
[322779542,1713279042793,-500.0,0.00017368,2]
[322779543,1713279042802,-1016.1,0.00017368,2]
[322779545,1713279042811,-71695.01282428,0.00017369,2]
[322779547,1713279042820,-500.0,0.00017369,2]
[322779549,1713279042829,-563.67,0.00017369,2]
[322779551,1713279042838,-126991.61814152,0.00017369,2]
[322779552,1713279042848,-274.67471971,0.00017369,2]
[322779553,1713279042857,-1261.16356177,0.0001737,2]
[322779554,1713279042866,-228.53,0.0001737,2]
[322779555,1713279042876,-228.53,0.0001737,2]
[322779556,1713279042885,-228.53,0.0001737,2]
[322779557,1713279042894,-1261.16356177,0.00017371,2]
[322779558,1713279042904,-19117.43497402,0.00017372,2]
[322779559,1713279042912,-19117.43497402,0.00017372,2]
[322779560,1713279042922,-234.24824054,0.00017373,2]
[322779561,1713279042930,-2273.21546381,0.00017374,2]
[322779562,1713279042940,-234.24824054,0.00017375,2]
[322779563,1713279042950,-5288.21672368,0.00017377,2]
[322779564,1713279042959,-2273.21546381,0.00017379,2]
[322779565,1713279042968,-1261.16356177,0.00017379,2]
[322779566,1713279042978,-5288.21672368,0.00017379,2]
[322779567,1713279042987,-1430.04,0.0001738,2]
[322779568,1713279042996,-500.0,0.0001738,2]
[322779569,1713279043005,-500.0,0.0001738,2]
[322779570,1713279043015,-150.0,0.0001738,2]
[322779571,1713279043023,-500.0,0.0001738,2]
[322779572,1713279043032,-500.0,0.0001738,2]
[322779573,1713279043042,-500.0,0.0001738,2]
[322779574,1713279043051,-500.0,0.0001738,2]
[322779576,1713279043060,-500.0,0.0001738,2]
[322779577,1713279043069,-563.67,0.0001738,2]
[322779579,1713279043078,-1016.1,0.0001738,2]
[322779581,1713279043087,-126991.61814152,0.0001738,2]
[322779584,1713279043097,-19117.43497402,0.0001738,2]
[322779586,1713279043107,-230.11793251,0.00017381,2]
[322779589,1713279043116,-230.11793251,0.00017381,2]
[322779590,1713279043128,-274.67471971,0.00017384,2]
[322779591,1713279043137,-1430.04,0.00017387,2]
[322779592,1713279043146,-500.0,0.00017387,2]
[322779593,1713279043155,-500.0,0.00017387,2]
[322779594,1713279043164,-150.0,0.00017387,2]
[322779595,1713279043173,-500.0,0.00017387,2]
[322779596,1713279043185,-500.0,0.00017387,2]
[322779597,1713279043194,-500.0,0.00017387,2]
[322779598,1713279043203,-500.0,0.00017387,2]
[322779599,1713279043212,-500.0,0.00017387,2]
[322779600,1713279043222,-563.67,0.00017387,2]
[322779601,1713279043231,-1016.1,0.00017387,2]
[322779602,1713279043240,-126991.61814152,0.00017387,2]
[322779603,1713279043250,-230.11793251,0.00017387,2]
[322779604,1713279043259,-126991.61814152,0.00017388,2]
[322779605,1713279043270,-230.11793251,0.00017389,2]
[322779606,1713279043279,-2273.21546381,0.00017389,2]
[322779607,1713279043288,-274.67471971,0.00017389,2]
[322779608,1713279043297,-274.67471971,0.00017389,2]
[322779609,1713279043307,-230.11793251,0.00017391,2]
[322779610,1713279043316,-19117.43497402,0.00017392,2]
[322779611,1713279043329,-5288.21672368,0.00017393,2]
[322779612,1713279043338,-234.24824054,0.00017393,2]
[322779613,1713279043348,-194.66708369,0.00017393,2]
[322779614,1713279043357,-175.39312351,0.00017393,2]
[322779615,1713279043366,-274.67471971,0.00017394,2]
[322779616,1713279043377,-1430.04,0.00017394,2]
[322779617,1713279043387,-500.0,0.00017394,2]
[322779618,1713279043396,-500.0,0.00017394,2]
[322779619,1713279043405,-150.0,0.00017394,2]
[322779620,1713279043415,-500.0,0.00017394,2]
[322779621,1713279043424,-500.0,0.00017394,2]
[322779622,1713279043434,-500.0,0.00017394,2]
[322779623,1713279043444,-500.0,0.00017394,2]
[322779624,1713279043455,-563.67,0.00017394,2]
[322779625,1713279043464,-1016.1,0.00017394,2]
[322779626,1713279043473,-230.11793251,0.00017395,2]
[322779627,1713279043483,-126991.61814152,0.00017395,2]
[322779628,1713279043492,-230.11793251,0.00017395,2]
[322779629,1713279043502,-1261.16356177,0.00017397,2]
[322779630,1713279043511,-19117.43497402,0.00017397,2]
[322779631,1713279043522,-234.24824054,0.00017398,2]
[322779632,1713279043532,-2273.21546381,0.00017399,2]
[322779633,1713279043542,-234.24824054,0.000174,2]
[322779634,1713279043552,-3006.98890219,0.00017401,2]
[322779635,1713279043562,-1300.91525671,0.00017441,2]
[322779636,1713279043572,-461.0,0.00017445,2]
[322779637,1713279043582,-2292.0,0.00017445,2]
[322779638,1713279043592,-969.229,0.00017445,2]
[322779639,1713279043602,-1392.0,0.00017445,2]
[322779640,1713279043612,-1254.0,0.00017445,2]
[322779641,1713279043623,-1228.0,0.00017445,2]
[322779642,1713279043634,-541.0,0.00017445,2]
[322779643,1713279043644,-364.808,0.00017445,2]
[322779644,1713279043653,-609.0,0.00017445,2]
[322779645,1713279043663,-1949.0,0.00017445,2]
[322779646,1713279043673,-436.0,0.00017445,2]
[322779647,1713279043682,-807.0,0.00017445,2]
[322779648,1713279043692,-297.7,0.00017445,2]
[322779649,1713279043701,-444.724,0.00017445,2]
[322779650,1713279043711,-2442.0,0.00017445,2]
[322779651,1713279043721,-3078.0,0.00017445,2]
[322779652,1713279043731,-1472.0,0.00017445,2]
[322779653,1713279043741,-203.841,0.00017445,2]
[322779654,1713279043750,-1638.0,0.00017445,2]
[322779655,1713279043760,-227.0,0.00017445,2]
[322779656,1713279043769,-242.856,0.00017445,2]
[322779657,1713279043779,-449.655,0.00017445,2]
[322779658,1713279043789,-399.52,0.00017445,2]
[322779659,1713279043799,-37645.0,0.00017445,2]
[322779660,1713279043808,-5723.0,0.00017445,2]
[322779661,1713279043818,-2703.0,0.00017445,2]
[322779662,1713279043828,-5887.0,0.00017445,2]
[322779663,1713279043838,-208.0,0.00017445,2]
[322779664,1713279043848,-150.214,0.00017445,2]
[322779666,1713279043858,-160.341,0.00017445,2]
[322779668,1713279043867,-1054.0,0.00017445,2]
[322779669,1713279043877,-151.342,0.00017445,2]
[322779671,1713279043886,-193.714,0.00017445,2]
[322779673,1713279043896,-1488.9831729,0.00017445,2]
[322779674,1713279043905,-150.0,0.00017539,2]
[322779675,1713279043915,-150.0,0.00017539,2]
[322779677,1713279043925,-150.0,0.00017539,2]
[322779679,1713279043935,-150.0,0.00017539,2]
[322779680,1713279043944,-212.47,0.00017561,2]
[322779681,1713279043954,-1101.88619472,0.00017699,2]
[322779682,1713279043965,-1488.9831729,0.00017718,2]
[322779683,1713279043975,-498.98,0.00017749,2]
[322779684,1713279043985,-271.719,0.0001775,2]
[322779685,1713279043996,-200.0,0.0001775,2]
[322779686,1713279044005,-155.577,0.0001775,2]
[322779687,1713279044015,-153.22,0.0001775,2]
[322779688,1713279044025,-158.486,0.0001775,2]
[322779689,1713279044035,-250.0,0.0001775,2]
[322779690,1713279044044,-152.008,0.0001775,2]
[322779691,1713279044054,-158.565,0.0001775,2]
[322779692,1713279044063,-176.228,0.0001775,2]
[322779693,1713279044072,-279.925,0.0001775,2]
[322779694,1713279044082,-263.941,0.0001775,2]
[322779695,1713279044091,-253.997,0.0001775,2]
[322779696,1713279044101,-164.0,0.0001775,2]
[322779697,1713279044110,-150.17,0.0001775,2]
[322779698,1713279044122,-200.0,0.0001785,2]
[322779699,1713279044131,-1610.04,0.00017875,2]
[322779700,1713279044141,-3851.20126353,0.0001788,2]
[322779701,1713279044150,-3851.20126352,0.0001788,2]
[322779702,1713279044159,-3851.20126352,0.0001788,2]
[322779703,1713279044173,-7193.54747738,0.0001788,2]
[322779704,1713279044182,-7193.54747738,0.0001788,2]
[322779705,1713279044191,-7193.54747738,0.0001788,2]
[322779706,1713279044201,-528.0,0.00017891,2]
[322779707,1713279044211,-516.0,0.00017891,2]
[322779708,1713279044220,-3851.20126352,0.00017893,2]
[322779709,1713279044229,-7193.54747738,0.00017893,2]
[322779710,1713279044238,-1488.9831729,0.00017991,2]
[322779711,1713279044248,-500.40468584,0.00017996,2]
[322779712,1713279044259,-2457.52561713,0.00017997,2]
[322779713,1713279044269,-1430.04,0.00017999,2]
[322779714,1713279044278,-500.0,0.00017999,2]
[322779715,1713279044287,-240.86082762,0.00017999,2]
[322779716,1713279044297,-150.0,0.00017999,2]
[322779717,1713279044308,-500.0,0.00017999,2]
[322779718,1713279044318,-500.0,0.00017999,2]
[322779719,1713279044327,-500.0,0.00017999,2]
[322779720,1713279044337,-500.0,0.00017999,2]
[322779721,1713279044346,-1016.1,0.00017999,2]
[322779722,1713279044355,-10000.0,0.00018,2]
[322779723,1713279044365,-7004.44199868,0.00018,2]
[322779724,1713279044377,-4853.0,0.00018,2]
[322779725,1713279044386,-155.0,0.00018,2]
[322779726,1713279044394,-40846.28836375,0.00018,2]
[322779727,1713279044403,-1101.88619472,0.00018099,2]
[322779728,1713279044413,-212.47,0.00018182,2]
[322779729,1713279044423,-563.67,0.00018224,2]
[322779730,1713279044432,-3851.20126352,0.00018228,2]
[322779731,1713279044442,-7193.54747738,0.00018228,2]
[322779732,1713279044451,-793.78809709,0.00018247,2]
[322779734,1713279044461,-3073.38136379,0.00018247,2]
[322779735,1713279044477,-796.40103401,0.00018247,2]
[322779736,1713279044487,-1488.9831729,0.00018264,2]
[322779737,1713279044497,-200.0,0.0001829,2]
[322779738,1713279044506,-28570.51680576,0.000183,3]
[322779739,1713279044515,-150.0,0.00018348,2]
[322779740,1713279044527,-150.0,0.00018348,2]
[322779741,1713279044539,-200.11175546,0.00018497,2]
[322779742,1713279044550,-1430.04,0.00018498,2]
[322779743,1713279044561,-1430.04,0.00018498,2]
[322779744,1713279044572,-1430.04,0.00018498,2]
[322779745,1713279044583,-1430.04,0.00018498,2]
[322779746,1713279044594,-500.0,0.00018498,2]
[322779747,1713279044605,-500.0,0.00018498,2]
[322779748,1713279044616,-346.77008343,0.00018498,2]
[322779749,1713279044630,-150.0,0.00018498,2]
[322779750,1713279044640,-150.0,0.00018498,2]
[322779751,1713279044651,-150.0,0.00018498,2]
[322779752,1713279044660,-214.10093203,0.00018498,2]
[322779753,1713279044671,-500.0,0.00018498,2]
[322779754,1713279044681,-500.0,0.00018498,2]
[322779755,1713279044691,-500.0,0.00018498,2]
[322779756,1713279044701,-500.0,0.00018498,2]
[322779757,1713279044713,-500.0,0.00018498,2]
[322779758,1713279044724,-500.0,0.00018498,2]
[322779759,1713279044735,-500.0,0.00018498,2]
[322779760,1713279044748,-490.0,0.00018498,2]
[322779761,1713279044759,-500.0,0.00018498,2]
[322779762,1713279044770,-500.0,0.00018498,2]
[322779763,1713279044781,-500.0,0.00018498,2]
[322779764,1713279044792,-500.0,0.00018498,2]
[322779765,1713279044802,-500.0,0.00018498,2]
[322779766,1713279044813,-500.0,0.00018498,2]
[322779767,1713279044824,-500.0,0.00018498,2]
[322779768,1713279044835,-500.0,0.00018498,2]
[322779769,1713279044847,-563.67,0.00018498,2]
[322779770,1713279044858,-563.67,0.00018498,2]
[322779771,1713279044872,-563.67,0.00018498,2]
[322779772,1713279044883,-563.67,0.00018498,2]
[322779773,1713279044894,-1016.1,0.00018498,2]
[322779774,1713279044904,-1016.1,0.00018498,2]
[322779775,1713279044916,-1016.1,0.00018498,2]
[322779776,1713279044927,-1016.1,0.00018498,2]
[322779777,1713279044937,-2200.0,0.00018499,2]
[322779778,1713279044947,-937805.21146368,0.00018499,2]
[322779779,1713279044957,-1430.04,0.00018499,2]
[322779780,1713279044967,-1430.04,0.00018499,2]
[322779781,1713279044978,-1430.04,0.00018499,2]
[322779782,1713279044988,-1430.04,0.00018499,2]
[322779783,1713279044999,-1430.04,0.00018499,2]
[322779784,1713279045010,-1430.2735602,0.00018499,2]
[322779785,1713279045020,-500.0,0.00018499,2]
[322779786,1713279045034,-594.43303264,0.00018499,2]
[322779787,1713279045045,-500.0,0.00018499,2]
[322779788,1713279045056,-458.6373592,0.00018499,2]
[322779789,1713279045066,-500.0,0.00018499,2]
[322779790,1713279045077,-266.43583243,0.00018499,2]
[322779791,1713279045087,-563.67,0.00018499,2]
[322779792,1713279045098,-563.67,0.00018499,2]
[322779793,1713279045108,-563.67,0.00018499,2]
[322779794,1713279045121,-563.67,0.00018499,2]
[322779795,1713279045131,-563.67,0.00018499,2]
[322779796,1713279045142,-563.89451329,0.00018499,2]
[322779797,1713279045153,-1016.1,0.00018499,2]
[322779798,1713279045163,-1016.1,0.00018499,2]
[322779799,1713279045174,-1016.1,0.00018499,2]
[322779800,1713279045186,-1016.1,0.00018499,2]
[322779801,1713279045196,-1016.1,0.00018499,2]
[322779802,1713279045206,-1016.13336687,0.00018499,2]
[322779803,1713279045219,-1101.88619472,0.000185,2]
[322779804,1713279045229,-1932925.17588963,0.000185,3]
[322779805,1713279045239,-1488.9831729,0.00018536,2]
[322779806,1713279045252,-3851.20126352,0.00018562,2]
[322779807,1713279045264,-528.0,0.00018713,2]
[322779808,1713279045275,-516.0,0.00018713,2]
[322779809,1713279045286,-212.47,0.00018803,2]
[322779810,1713279045296,-1488.9831729,0.00018809,2]
[322779811,1713279045310,-9228.82911241,0.00018888,2]
[322779812,1713279046094,-228.53,0.0001737,2]
[322779813,1713279046103,-37.98640759,0.00017377,2]
[322779814,1713279046135,-190.54359241,0.00017377,2]
[322779815,1713279046145,-86.60640759,0.00017377,2]
[322779816,1713279046168,-141.92359241,0.00017377,2]
[322779817,1713279046182,-228.53,0.00017377,2]
[322779818,1713279046192,-228.53,0.00017377,2]
[322779819,1713279046202,-228.53,0.00017378,2]
[322779820,1713279046211,-228.53,0.00017378,2]
[322779821,1713279046260,-143.94658133,0.00017378,2]
[322779822,1713279046272,-84.58341867,0.00017378,2]
[322779823,1713279046282,-228.53,0.00017378,2]
[322779824,1713279046291,-125.98850225,0.00017385,2]
[322779825,1713279046315,-102.54149775,0.00017385,2]
[322779826,1713279046326,-228.53,0.00017385,2]
[322779827,1713279046336,-228.53,0.00017385,2]
[322779828,1713279046345,-228.53,0.00017385,2]
[322779829,1713279046356,-228.53,0.00017389,2]
[322779830,1713279046366,-228.53,0.00017435,2]
[322779831,1713279046379,-228.53,0.00017435,2]
[322779832,1713279046388,-150.0,0.00017445,2]
[322779833,1713279046398,-151.0,0.00017445,2]
[322779834,1713279046407,-228.53,0.0001787,2]
[322779835,1713279046417,-774.05622815,0.00018562,2]
[322779836,1713279047329,-195.23070885,0.00016997,2]
[322779837,1713279047339,-300.18029115,0.00016997,2]
[322779838,1713279047353,-638.0945318,0.00016997,2]
[322779839,1713279047491,-4899.94101818,0.00016997,2]
[322779840,1713279047501,-228.53,0.0001799,2]
[322779841,1713279047511,-228.53,0.0001799,2]
[322779842,1713279047521,-228.53,0.0001829,2]
[322779843,1713279047530,-228.53,0.00018488,2]
[322779844,1713279047540,-228.53,0.00018489,2]
[322779845,1713279047550,-228.53,0.00018489,2]
[322779846,1713279047560,-228.53,0.00018489,2]
[322779847,1713279047570,-228.53,0.00018489,2]
[322779848,1713279047580,-228.53,0.00018489,2]
[322779849,1713279047589,-228.53,0.00018489,2]
[322779850,1713279047599,-168.97886822,0.00018489,2]
[322779851,1713279047612,-59.55113178,0.00018489,2]
[322779852,1713279047624,-228.53,0.00018489,2]
[322779853,1713279047635,-228.53,0.00018489,2]
[322779854,1713279047645,-228.53,0.00018489,2]
[322779855,1713279047656,-228.53,0.00018489,2]
[322779856,1713279047668,-228.53,0.00018489,2]
[322779857,1713279047678,-228.53,0.00018489,2]
[322779858,1713279047688,-228.53,0.00018489,2]
[322779859,1713279047698,-228.53,0.00018489,2]
[322779898,1713279048127,-228.53,0.00018489,2]
[322779902,1713279048148,-228.53,0.00018489,2]
[322779905,1713279048168,-228.53,0.00018489,2]
[322779907,1713279048186,-228.53,0.00018489,2]
[322779910,1713279048196,-228.53,0.00018489,2]
[322779911,1713279048206,-151.0,0.00018499,2]
[322779914,1713279048217,-151.0,0.000185,2]
[322779916,1713279048227,-4164.11143881,0.00018562,2]
[322779919,1713279048246,-228.53,0.00018489,2]
[322779921,1713279048257,-716.98932382,0.00018562,2]
[322779923,1713279048268,-1227.69,0.00018562,2]
[322779925,1713279048279,-310.7004866,0.00018562,2]
[322779927,1713279048288,-22815.35301776,0.00018888,2]
[322779930,1713279048307,-1018.3,0.00018888,2]
[322779933,1713279048318,-6653.28019799,0.00018888,2]
[322779935,1713279048329,-387.53754655,0.00018888,2]
[322779937,1713279048340,-794.89183922,0.00018888,2]
[322779939,1713279048352,-669.896727,0.00018888,2]
[322779991,1713279235624,1857.8911554,0.00028,30]
[322779995,1713279281151,107396.17527493,0.00025,30]
[322779996,1713279463755,10000.0,0.00028,30]
[322779997,1713279586273,1745.83354019,0.00014249,2]
[322779998,1713279600621,10000.0,0.00028,30]
[322780357,1713279630177,424.13,0.00015197,2]
[322780358,1713279630243,1615.0,0.00028,30]
[322780359,1713279642271,1745.83354019,0.00014249,2]
[322780360,1713279649066,4413.06411,0.000266,30]
[322780361,1713279686405,1741.58324089,0.00014249,2]
[322780363,1713279811148,-188.0,0.00032218,30]
[322780364,1713279811176,-476.94961533,0.00032218,30]
[322780365,1713279811197,-356.48471263,0.00032218,30]
[322780366,1713279811217,-363.79085405,0.00032218,30]
[322780367,1713279811239,-195.18078773,0.00032218,30]
[322780368,1713279811260,-194.95429292,0.00032218,30]
[322780369,1713279811283,-328.89261765,0.00032218,30]
[322780370,1713279811305,-255.12431056,0.00032218,30]
[322780371,1713279811327,-190.62772719,0.00032218,30]
[322780372,1713279811349,-249.6844177,0.00032218,30]
[322780373,1713279811371,-5230.494,0.00032218,30]
[322780374,1713279811392,-300.0,0.00032218,30]
[322780375,1713279811414,-400.0,0.00032218,30]
[322780376,1713279811439,-689.77758446,0.00032218,30]
[322780377,1713279811463,-805.69248964,0.00032218,30]
[322780378,1713279811485,-823.71815412,0.00032218,30]
[322780379,1713279811513,-806.83330435,0.00032218,30]
[322780380,1713279811568,-814.55054662,0.00032218,30]
[322780381,1713279811626,-833.75397494,0.00032218,30]
[322780382,1713279811688,-2042.70297691,0.00032218,30]
[322780383,1713279811722,-800.0,0.00032218,31]
[322780384,1713279811744,-10000.0,0.00032218,30]
[322780385,1713279811766,-1551.2528,0.00032218,30]
[322780386,1713279811790,-678.30607557,0.00032218,30]
[322780387,1713279811818,-500.8229647,0.00032218,30]
[322780388,1713279811840,-8617.9237687,0.00032218,30]
[322780389,1713279811862,-175.21428768,0.00032218,30]
[322780390,1713279811884,-344.86612879,0.00032218,30]
[322780391,1713279811907,-587.0,0.00032218,30]
[322780392,1713279811931,-323.97094548,0.00032218,30]